[Event "MČR juniorů a juniorek v rapid šachu 2023"]
[Site "Czech Republic"]
[Date "2023.09.24"]
[Round "8.29"]
[White "Nikolinko, Tomas"]
[Black "Bela, Lukas"]
[Result "1-0"]
[TimeControl "20 min + 5 sec per move"]
[WhiteFideId "389749"]
[BlackFideId "23738545"]
[WhiteElo "1327"]
[BlackElo "1297"]

1. e4 {[%clk 00:20:09]} c5 {[%clk 00:20:09]} {[%emt 00:00:02]} 2. Nf3 {[%clk
00:20:11]} {[%emt 00:00:03]} Nc6 {[%clk 00:20:11]} {[%emt 00:00:02]} 3. d4
{[%clk 00:20:14]} {[%emt 00:00:03]} e6 {[%emt 00:00:16]} 4. d5 {[%clk
00:20:06]} Na5 {[%clk 00:19:32]} {[%emt 00:00:46]} 5. Nc3 {[%clk 00:19:46]}
{[%emt 00:00:25]} d6 {[%clk 00:19:22]} {[%emt 00:00:15]} 6. Bb5+ {[%clk
00:19:21]} {[%emt 00:00:30]} Bd7 {[%clk 00:19:18]} {[%emt 00:00:08]} 7. Bxd7+
{[%clk 00:19:14]} {[%emt 00:00:12]} Qxd7 {[%clk 00:19:21]} {[%emt 00:00:02]} 8.
O-O {[%clk 00:19:16]} {[%emt 00:00:02]} exd5 {[%clk 00:19:01]} {[%emt
00:00:26]} 9. Nxd5 {[%clk 00:19:09]} {[%emt 00:00:12]} O-O-O {[%clk 00:18:54]}
{[%emt 00:00:12]} 10. Bd2 {[%clk 00:17:29]} {[%emt 00:01:45]} Nc6 {[%clk
00:17:15]} {[%emt 00:01:44]} 11. Bc3 {[%clk 00:16:48]} {[%emt 00:00:46]} Nce7
{[%clk 00:16:40]} {[%emt 00:00:40]} 12. Ng5 {[%clk 00:16:13]} {[%emt 00:00:41]}
Nxd5 {[%clk 00:16:10]} {[%emt 00:00:35]} 13. Qxd5 {[%clk 00:16:13]} {[%emt
00:00:05]} Nh6 {[%clk 00:16:12]} {[%emt 00:00:03]} 14. Rad1 {[%clk 00:15:52]}
{[%emt 00:00:26]} f6 {[%clk 00:15:41]} {[%emt 00:00:36]} 15. Ne6 {[%clk
00:15:31]} {[%emt 00:00:26]} Re8 {[%clk 00:15:23]} {[%emt 00:00:23]} 16. Nxc5
{[%clk 00:15:22]} {[%emt 00:00:13]} Qc6 {[%clk 00:14:51]} {[%emt 00:00:37]} 17.
Ne6 {[%clk 00:14:40]} {[%emt 00:00:47]} Qxd5 {[%clk 00:13:42]} {[%emt
00:01:15]} 18. exd5 {[%clk 00:14:41]} {[%emt 00:00:03]} Kd7 {[%clk 00:13:45]}
{[%emt 00:00:02]} 19. Rfe1 {[%clk 00:14:31]} {[%emt 00:00:15]} Re7 {[%clk
00:13:17]} {[%emt 00:00:33]} 20. Nxf8+ {[%clk 00:14:22]} {[%emt 00:00:14]} Rxf8
{[%clk 00:13:21]} {[%emt 00:00:02]} 21. Rxe7+ {[%clk 00:14:24]} {[%emt
00:00:03]} Kxe7 {[%clk 00:13:24]} {[%emt 00:00:02]} 22. Re1+ {[%clk 00:14:27]}
{[%emt 00:00:02]} Kd7 {[%clk 00:13:20]} {[%emt 00:00:09]} 23. f3 {[%clk
00:14:05]} {[%emt 00:00:27]} Nf5 {[%clk 00:13:14]} {[%emt 00:00:10]} 24. Kf2
{[%clk 00:14:04]} {[%emt 00:00:07]} Ne7 {[%clk 00:13:14]} {[%emt 00:00:04]} 25.
Rd1 {[%clk 00:13:42]} {[%emt 00:00:27]} g5 {[%clk 00:12:40]} {[%emt 00:00:40]}
26. g4 {[%clk 00:13:39]} {[%emt 00:00:08]} Rf7 {[%clk 00:12:03]} {[%emt
00:00:41]} 27. Bd4 {[%clk 00:12:43]} {[%emt 00:01:01]} b6 {[%clk 00:11:56]}
{[%emt 00:00:13]} 28. Be3 {[%clk 00:12:34]} {[%emt 00:00:14]} h6 {[%clk
00:11:43]} {[%emt 00:00:18]} 29. f4 {[%clk 00:12:25]} {[%emt 00:00:14]} f5
{[%clk 00:11:30]} {[%emt 00:00:18]} 30. Kg3 {[%clk 00:11:58]} {[%emt 00:00:32]}
Rg7 {[%clk 00:10:22]} {[%emt 00:01:12]} 31. fxg5 {[%clk 00:11:54]} {[%emt
00:00:09]} hxg5 {[%clk 00:09:16]} {[%emt 00:01:11]} 32. Bd4 {[%clk 00:10:51]}
{[%emt 00:01:08]} f4+ {[%clk 00:08:34]} {[%emt 00:00:47]} 33. Kf3 {[%clk
00:10:44]} {[%emt 00:00:12]} Rf7 {[%clk 00:08:21]} {[%emt 00:00:19]} 34. c4
{[%clk 00:10:39]} {[%emt 00:00:11]} Ng6 {[%clk 00:06:49]} {[%emt 00:01:36]} 35.
Re1 {[%clk 00:10:04]} {[%emt 00:00:40]} Nh4+ {[%clk 00:06:37]} {[%emt
00:00:17]} 36. Kf2 {[%clk 00:10:01]} {[%emt 00:00:08]} f3 {[%clk 00:05:51]}
{[%emt 00:00:52]} 37. Be3 {[%clk 00:09:18]} {[%emt 00:00:47]} Ng2 {[%clk
00:05:35]} {[%emt 00:00:21]} 38. Rf1 {[%clk 00:09:09]} {[%emt 00:00:14]} Nxe3
{[%clk 00:04:57]} {[%emt 00:00:43]} 39. Kxe3 {[%clk 00:09:11]} {[%emt
00:00:03]} Rf4 {[%clk 00:05:01]} {[%emt 00:00:02]} 40. b3 {[%clk 00:09:02]}
{[%emt 00:00:14]} a5 {[%clk 00:04:44]} {[%emt 00:00:21]} 41. Rxf3 {[%clk
00:08:58]} {[%emt 00:00:09]} Rxg4 {[%clk 00:04:41]} {[%emt 00:00:08]} 42. Rg3
{[%clk 00:08:54]} {[%emt 00:00:10]} Rh4 {[%clk 00:03:46]} {[%emt 00:01:00]} 43.
Rg2 {[%clk 00:08:48]} {[%emt 00:00:10]} Ke7 {[%clk 00:03:27]} {[%emt 00:00:24]}
44. Kf3 {[%clk 00:08:32]} {[%emt 00:00:21]} Kf6 {[%clk 00:03:20]} {[%emt
00:00:13]} 45. Kg3 {[%clk 00:08:24]} {[%emt 00:00:13]} Rf4 {[%clk 00:03:00]}
{[%emt 00:00:25]} 46. Rf2 {[%clk 00:08:26]} {[%emt 00:00:03]} Kf5 {[%clk
00:03:03]} {[%emt 00:00:01]} 47. Rxf4+ {[%clk 00:08:24]} {[%emt 00:00:07]}
gxf4+ {[%clk 00:03:07]} {[%emt 00:00:02]} 48. Kf3 {[%clk 00:08:27]} {[%emt
00:00:01]} Kg5 {[%clk 00:02:58]} {[%emt 00:00:15]} 49. h3 {[%clk 00:08:26]}
{[%emt 00:00:06]} Kh4 {[%clk 00:01:41]} {[%emt 00:01:22]} 50. Kxf4 {[%clk
00:08:29]} {[%emt 00:00:02]} Kxh3 {[%clk 00:01:44]} {[%emt 00:00:02]} 51. Kf5
{[%clk 00:08:32]} {[%emt 00:00:02]} Kg3 {[%clk 00:01:48]} {[%emt 00:00:01]} 52.
Ke6 {[%clk 00:08:35]} {[%emt 00:00:02]} Kf4 {[%clk 00:01:52]} {[%emt 00:00:01]}
53. Kxd6 {[%clk 00:08:38]} {[%emt 00:00:02]} Kf5 {[%clk 00:01:54]} {[%emt
00:00:03]} 54. Kc6 {[%clk 00:08:41]} {[%emt 00:00:02]} Ke5 {[%clk 00:01:57]}
{[%emt 00:00:02]} 55. d6 {[%clk 00:08:44]} {[%emt 00:00:02]} 1-0

[Event "MČR juniorů a juniorek v rapid šachu 2023"]
[Site "Czech Republic"]
[Date "2023.09.24"]
[Round "8.30"]
[White "Tvaroh, Vitezslav"]
[Black "Macova, Marketa"]
[Result "1-0"]
[TimeControl "20 min + 5 sec per move"]
[WhiteFideId "23704209"]
[BlackFideId "23715588"]
[WhiteElo "1303"]
[BlackElo "1228"]

1. e4 {[%clk 00:20:08]} {[%emt 00:00:02]} e5 {[%clk 00:20:09]} 2. Nf3 {[%clk
00:20:10]} {[%emt 00:00:03]} Nc6 {[%clk 00:20:13]} {[%emt 00:00:01]} 3. Bc4
{[%clk 00:20:01]} {[%emt 00:00:14]} Bc5 {[%clk 00:20:16]} {[%emt 00:00:02]} 4.
b4 {[%clk 00:19:25]} {[%emt 00:00:41]} Bxb4 {[%clk 00:20:07]} {[%emt 00:00:13]}
5. c3 {[%clk 00:19:29]} {[%emt 00:00:02]} Ba5 {[%clk 00:19:54]} {[%emt
00:00:18]} 6. d4 {[%clk 00:19:05]} {[%emt 00:00:28]} exd4 {[%clk 00:19:29]}
{[%emt 00:00:30]} 7. O-O {[%clk 00:18:41]} {[%emt 00:00:29]} dxc3 {[%clk
00:18:54]} {[%emt 00:00:40]} 8. Qb3 {[%clk 00:18:33]} {[%emt 00:00:13]} Qe7
{[%clk 00:17:58]} {[%emt 00:01:02]} 9. Bg5 {[%clk 00:16:54]} {[%emt 00:01:44]}
f6 {[%clk 00:16:54]} {[%emt 00:01:08]} 10. Bh4 {[%clk 00:14:14]} {[%emt
00:02:46]} Nh6 {[%clk 00:14:52]} {[%emt 00:02:06]} 11. Nxc3 {[%clk 00:13:51]}
{[%emt 00:00:29]} Bxc3 {[%clk 00:14:38]} {[%emt 00:00:19]} 12. Qxc3 {[%clk
00:13:54]} {[%emt 00:00:02]} Nf7 {[%clk 00:14:23]} {[%emt 00:00:19]} 13. e5
{[%clk 00:12:49]} {[%emt 00:01:11]} Ncxe5 {[%clk 00:11:11]} {[%emt 00:03:17]}
14. Nxe5 {[%clk 00:12:45]} {[%emt 00:00:09]} Nxe5 {[%clk 00:11:04]} {[%emt
00:00:12]} 15. Rfe1 {[%clk 00:12:38]} {[%emt 00:00:11]} Kf8 {[%clk 00:08:33]}
{[%emt 00:02:36]} 16. Bb3 {[%clk 00:08:28]} {[%emt 00:04:15]} Qd6 {[%clk
00:07:15]} {[%emt 00:01:24]} 17. Rad1 {[%clk 00:06:47]} {[%emt 00:01:45]} Qc6
{[%clk 00:06:49]} {[%emt 00:00:31]} 18. Qe3 {[%clk 00:03:34]} {[%emt 00:03:18]}
Qb6 {[%clk 00:05:26]} {[%emt 00:01:29]} 19. Qe2 {[%clk 00:02:26]} {[%emt
00:01:13]} d6 {[%clk 00:04:53]} {[%emt 00:00:38]} 20. Kh1 {[%clk 00:01:53]}
{[%emt 00:00:38]} Bd7 {[%clk 00:02:38]} {[%emt 00:02:19]} 21. f4 {[%clk
00:01:24]} {[%emt 00:00:34]} Ng6 {[%clk 00:02:17]} {[%emt 00:00:26]} 22. Qc4
{[%clk 00:00:54]} {[%emt 00:00:35]} d5 {[%clk 00:00:17]} {[%emt 00:02:05]} 23.
Qxd5 {[%clk 00:00:48]} {[%emt 00:00:11]} Be6 {[%clk 00:00:07]} {[%emt
00:00:15]} 24. Rxe6 {[%clk 00:00:48]} {[%emt 00:00:04]} Qxe6 {[%clk 00:00:06]}
{[%emt 00:00:07]} 25. Qxe6 {[%clk 00:00:51]} {[%emt 00:00:02]} 1-0

[Event "MČR juniorů a juniorek v rapid šachu 2023"]
[Site "Czech Republic"]
[Date "2023.09.24"]
[Round "8.31"]
[White "Cinkova, Vicky"]
[Black "Krajicek, Matthew"]
[Result "1/2-1/2"]
[TimeControl "20 min + 5 sec per move"]
[WhiteFideId "23725826"]
[BlackFideId "23740175"]
[WhiteElo "1300"]
[BlackElo "1283"]

1. e4 {[%clk 00:20:09]} d5 {[%clk 00:20:09]} {[%emt 00:00:02]} 2. exd5 {[%clk
00:20:12]} {[%emt 00:00:02]} Qxd5 {[%clk 00:20:13]} {[%emt 00:00:01]} 3. Nc3
{[%clk 00:20:16]} Qa5 {[%clk 00:20:17]} 4. d4 {[%clk 00:20:20]} Bf5 {[%clk
00:20:08]} {[%emt 00:00:14]} 5. Bc4 {[%clk 00:20:01]} {[%emt 00:00:23]} e6
{[%clk 00:20:03]} {[%emt 00:00:10]} 6. Bd2 {[%clk 00:19:21]} {[%emt 00:00:45]}
c6 {[%clk 00:20:02]} {[%emt 00:00:07]} 7. Nf3 {[%clk 00:18:54]} {[%emt
00:00:32]} Nd7 {[%clk 00:19:37]} {[%emt 00:00:29]} 8. h3 {[%clk 00:18:48]}
{[%emt 00:00:12]} Ngf6 {[%clk 00:18:01]} {[%emt 00:01:40]} 9. a3 {[%clk
00:17:46]} {[%emt 00:01:08]} Qc7 {[%clk 00:17:13]} {[%emt 00:00:52]} 10. O-O
{[%clk 00:16:51]} {[%emt 00:01:01]} Bd6 {[%clk 00:17:04]} {[%emt 00:00:14]} 11.
Bb3 {[%clk 00:15:36]} {[%emt 00:01:20]} O-O {[%clk 00:16:27]} {[%emt 00:00:42]}
12. Be3 {[%clk 00:15:26]} {[%emt 00:00:15]} Bf4 {[%clk 00:16:10]} {[%emt
00:00:21]} 13. Qd2 {[%clk 00:14:55]} {[%emt 00:00:36]} Bxe3 {[%clk 00:15:38]}
{[%emt 00:00:37]} 14. Qxe3 {[%clk 00:14:58]} {[%emt 00:00:02]} Nd5 {[%clk
00:15:34]} {[%emt 00:00:09]} 15. Nxd5 {[%clk 00:14:51]} {[%emt 00:00:12]} exd5
{[%clk 00:15:34]} {[%emt 00:00:05]} 16. Rfe1 {[%clk 00:13:26]} {[%emt
00:01:30]} Be6 {[%clk 00:14:49]} {[%emt 00:00:50]} 17. c3 {[%clk 00:12:41]}
{[%emt 00:00:50]} Rfe8 {[%clk 00:14:30]} {[%emt 00:00:23]} 18. Qd2 {[%clk
00:12:30]} {[%emt 00:00:17]} Re7 {[%clk 00:12:25]} {[%emt 00:02:08]} 19. Bc2
{[%clk 00:12:28]} {[%emt 00:00:08]} Rae8 {[%clk 00:12:17]} {[%emt 00:00:13]} 20.
Ng5 {[%clk 00:12:22]} {[%emt 00:00:11]} h6 {[%clk 00:11:00]} {[%emt 00:01:22]}
21. Nxe6 {[%clk 00:11:05]} {[%emt 00:01:23]} Rxe6 {[%clk 00:11:03]} {[%emt
00:00:02]} 22. Rxe6 {[%clk 00:10:28]} {[%emt 00:00:41]} Rxe6 {[%clk 00:11:05]}
{[%emt 00:00:03]} 23. Bf5 {[%clk 00:10:32]} {[%emt 00:00:02]} Rf6 {[%clk
00:10:24]} {[%emt 00:00:45]} 24. Bxd7 {[%clk 00:10:12]} {[%emt 00:00:26]} Qxd7
{[%clk 00:10:26]} {[%emt 00:00:03]} 25. Re1 {[%clk 00:10:13]} {[%emt 00:00:03]}
Re6 {[%clk 00:10:27]} {[%emt 00:00:04]} 26. Kh2 {[%clk 00:09:15]} {[%emt
00:01:03]} Qd6+ {[%clk 00:09:47]} {[%emt 00:00:46]} 27. g3 {[%clk 00:09:12]}
{[%emt 00:00:08]} Qe7 {[%clk 00:09:46]} {[%emt 00:00:05]} 28. Rxe6 {[%clk
00:08:06]} {[%emt 00:01:11]} Qxe6 {[%clk 00:09:42]} {[%emt 00:00:09]} 29. Kg2
{[%clk 00:05:45]} {[%emt 00:02:26]} Qe4+ {[%clk 00:09:32]} {[%emt 00:00:15]} 30.
f3 {[%clk 00:05:37]} {[%emt 00:00:13]} Qf5 {[%clk 00:08:44]} {[%emt 00:00:53]}
31. Qe2 {[%clk 00:05:30]} {[%emt 00:00:11]} Kh7 {[%clk 00:07:14]} {[%emt
00:01:37]} 32. h4 {[%clk 00:04:54]} {[%emt 00:00:41]} Qe6 {[%clk 00:05:48]}
{[%emt 00:01:30]} 33. Qxe6 {[%clk 00:04:49]} {[%emt 00:00:10]} fxe6 {[%clk
00:05:52]} {[%emt 00:00:01]} 34. Kf2 {[%clk 00:04:21]} {[%emt 00:00:33]} Kg6
{[%clk 00:05:29]} {[%emt 00:00:28]} 35. g4 {[%clk 00:03:35]} {[%emt 00:00:51]}
Kf6 {[%clk 00:05:23]} {[%emt 00:00:11]} 36. f4 {[%clk 00:03:15]} {[%emt
00:00:26]} a5 {[%clk 00:04:48]} {[%emt 00:00:39]} 37. Ke3 {[%clk 00:03:07]}
{[%emt 00:00:13]} g6 {[%clk 00:03:56]} {[%emt 00:00:57]} 38. g5+ {[%clk
00:01:42]} {[%emt 00:01:31]} hxg5 {[%clk 00:03:55]} {[%emt 00:00:06]} 39. hxg5+
{[%clk 00:01:46]} {[%emt 00:00:01]} Kf5 {[%clk 00:03:58]} {[%emt 00:00:02]} 40.
Kf3 {[%clk 00:01:50]} {[%emt 00:00:01]} b6 {[%clk 00:04:01]} {[%emt 00:00:02]}
41. b3 {[%clk 00:00:36]} {[%emt 00:01:18]} c5 {[%clk 00:03:56]} {[%emt
00:00:09]} 42. a4 {[%clk 00:00:08]} {[%emt 00:00:33]} e5 {[%clk 00:00:29]}
{[%emt 00:03:32]} 43. dxe5 {[%emt 00:00:09]} Ke6 {[%clk 00:00:16]} {[%emt
00:00:16]} 44. Ke3 {[%clk 00:00:10]} {[%emt 00:00:02]} Kf5 {[%clk 00:00:16]}
{[%emt 00:00:05]} 45. Kf3 {[%clk 00:00:09]} {[%emt 00:00:06]} Ke6 {[%emt
00:00:38]} 46. Ke3 {[%emt 00:00:14]} Kf5 47. Kd3 Ke6 {[%emt 00:00:04]} 48. Ke3
{[%emt 00:00:15]} Kf5 49. Kf3 {[%emt 00:00:01]} Ke6 50. Kg4 1/2-1/2

[Event "MČR juniorů a juniorek v rapid šachu 2023"]
[Site "Czech Republic"]
[Date "2023.09.24"]
[Round "8.34"]
[White "Hosova, Stella"]
[Black "Zadrapova, Gabriela"]
[Result "1-0"]
[TimeControl "20 min + 5 sec per move"]
[WhiteFideId "23710489"]
[BlackFideId "23753056"]
[WhiteElo "1164"]
[BlackElo "1206"]

1. d4 {[%clk 00:20:05]} {[%emt 00:02:22]} d5 {[%clk 00:20:05]} {[%emt
00:00:03]} 2. Bf4 {[%clk 00:20:05]} {[%emt 00:00:01]} Nc6 {[%clk 00:20:05]}
{[%emt 00:00:08]} 3. e3 {[%clk 00:20:05]} {[%emt 00:00:02]} Nf6 {[%clk
00:20:05]} {[%emt 00:00:08]} 4. Bd3 {[%clk 00:20:05]} {[%emt 00:00:02]} Bd7
{[%clk 00:20:05]} {[%emt 00:00:17]} 5. Nf3 {[%clk 00:20:05]} {[%emt 00:00:02]}
e6 {[%clk 00:20:05]} {[%emt 00:00:06]} 6. Nbd2 {[%clk 00:20:05]} {[%emt
00:00:03]} Bd6 {[%clk 00:20:05]} {[%emt 00:00:06]} 7. Bxd6 {[%clk 00:20:05]}
{[%emt 00:00:03]} cxd6 {[%clk 00:20:05]} {[%emt 00:00:03]} 8. c3 {[%clk
00:20:05]} {[%emt 00:00:17]} O-O {[%clk 00:20:05]} {[%emt 00:00:17]} 9. Qc2
{[%clk 00:20:05]} {[%emt 00:00:02]} e5 {[%clk 00:20:05]} {[%emt 00:00:26]} 10.
e4 {[%clk 00:20:05]} {[%emt 00:01:07]} exd4 {[%clk 00:20:05]} {[%emt 00:00:36]}
11. exd5 {[%clk 00:19:59]} {[%emt 00:00:21]} Re8+ {[%clk 00:20:03]} {[%emt
00:00:07]} 12. Kf1 {[%clk 00:19:15]} {[%emt 00:00:49]} Ne7 {[%clk 00:19:38]}
{[%emt 00:00:29]} 13. Nxd4 {[%clk 00:18:42]} {[%emt 00:00:39]} Nexd5 {[%clk
00:19:23]} {[%emt 00:00:20]} 14. Ne4 {[%clk 00:18:03]} {[%emt 00:00:44]} Bg4
{[%clk 00:18:30]} {[%emt 00:00:57]} 15. h3 {[%clk 00:17:33]} {[%emt 00:00:35]}
Bh5 {[%clk 00:18:31]} {[%emt 00:00:04]} 16. c4 {[%clk 00:17:12]} {[%emt
00:00:27]} Nxe4 {[%clk 00:18:23]} {[%emt 00:00:13]} 17. Bxe4 {[%clk 00:17:13]}
{[%emt 00:00:04]} Nf6 {[%clk 00:18:26]} {[%emt 00:00:02]} 18. Bxb7 {[%clk
00:17:12]} {[%emt 00:00:08]} Rb8 {[%clk 00:18:24]} {[%emt 00:00:06]} 19. Nc6
{[%clk 00:16:18]} {[%emt 00:00:59]} Be2+ {[%clk 00:17:30]} {[%emt 00:00:58]} 20.
Kg1 {[%clk 00:16:02]} {[%emt 00:00:21]} Bd3 {[%clk 00:17:12]} {[%emt 00:00:24]}
21. Qxd3 {[%clk 00:15:46]} {[%emt 00:00:21]} Qc7 {[%clk 00:17:13]} {[%emt
00:00:04]} 22. Nxb8 {[%clk 00:15:41]} {[%emt 00:00:10]} Rxb8 {[%clk 00:17:14]}
{[%emt 00:00:04]} 23. Bd5 {[%clk 00:15:19]} {[%emt 00:00:26]} Nxd5 {[%clk
00:17:07]} {[%emt 00:00:12]} 24. Qxd5 {[%clk 00:15:08]} {[%emt 00:00:17]} Rxb2
{[%clk 00:17:01]} {[%emt 00:00:11]} 25. Qa8+ {[%clk 00:15:02]} {[%emt
00:00:11]} Rb8 {[%clk 00:17:02]} {[%emt 00:00:03]} 26. Qd5 {[%clk 00:14:51]}
{[%emt 00:00:16]} Rc8 {[%clk 00:16:18]} {[%emt 00:00:50]} 27. Kh2 {[%clk
00:14:32]} {[%emt 00:00:24]} Rb8 {[%clk 00:15:43]} {[%emt 00:00:41]} 28. Rhd1
{[%clk 00:14:24]} {[%emt 00:00:12]} Rb6 {[%clk 00:15:37]} {[%emt 00:00:10]} 29.
Rab1 {[%clk 00:14:04]} {[%emt 00:00:26]} Ra6 {[%clk 00:15:39]} {[%emt
00:00:03]} 30. Qa8+ {[%clk 00:14:04]} {[%emt 00:00:05]} Qb8 {[%clk 00:15:28]}
{[%emt 00:00:16]} 31. Qxb8# {[%clk 00:14:06]} {[%emt 00:00:03]} 1-0

[Event "MČR juniorů a juniorek v rapid šachu 2023"]
[Site "Czech Republic"]
[Date "2023.09.24"]
[Round "9.1"]
[White "Ocelak, Jakub"]
[Black "Pressler, Tobias"]
[Result "1/2-1/2"]
[TimeControl "20 min + 5 sec per move"]
[WhiteFideId "23707933"]
[BlackFideId "23715359"]
[WhiteElo "2025"]
[BlackElo "1859"]

1. b3 {[%clk 00:20:09]} {[%emt 00:05:21]} d5 {[%clk 00:20:07]} {[%emt
00:00:04]} 2. Bb2 {[%clk 00:20:12]} Nf6 {[%clk 00:20:05]} {[%emt 00:00:07]} 3.
Nf3 {[%clk 00:20:09]} {[%emt 00:00:02]} e6 {[%clk 00:20:07]} {[%emt 00:00:08]}
4. e3 {[%clk 00:20:07]} {[%emt 00:00:07]} Bd6 {[%clk 00:20:08]} {[%emt
00:00:04]} 5. c4 {[%clk 00:20:10]} {[%emt 00:00:02]} c6 {[%clk 00:20:09]}
{[%emt 00:00:05]} 6. Nc3 {[%clk 00:20:11]} {[%emt 00:00:04]} O-O {[%clk
00:20:05]} {[%emt 00:00:09]} 7. d4 {[%clk 00:20:14]} {[%emt 00:00:02]} Nbd7
{[%clk 00:20:06]} {[%emt 00:00:04]} 8. Be2 {[%clk 00:20:01]} {[%emt 00:00:17]}
dxc4 {[%clk 00:19:26]} {[%emt 00:00:45]} 9. Bxc4 {[%clk 00:19:24]} {[%emt
00:00:42]} b5 {[%clk 00:18:59]} {[%emt 00:00:32]} 10. Be2 {[%clk 00:18:14]}
{[%emt 00:01:14]} Bb7 {[%clk 00:19:02]} {[%emt 00:00:04]} 11. O-O {[%clk
00:17:25]} {[%emt 00:00:53]} Rc8 {[%clk 00:18:36]} {[%emt 00:00:31]} 12. Rc1
{[%clk 00:16:14]} {[%emt 00:01:16]} Qa5 {[%clk 00:18:02]} {[%emt 00:00:39]} 13.
Bd3 {[%clk 00:14:48]} {[%emt 00:01:31]} Rfd8 {[%clk 00:16:04]} {[%emt
00:02:03]} 14. Qe2 {[%clk 00:12:37]} {[%emt 00:02:16]} a6 {[%clk 00:15:42]}
{[%emt 00:00:27]} 15. Rfd1 {[%clk 00:11:32]} {[%emt 00:01:09]} c5 {[%clk
00:15:25]} {[%emt 00:00:23]} 16. Bb1 {[%clk 00:10:37]} {[%emt 00:00:59]} Qb6
{[%clk 00:13:25]} {[%emt 00:02:05]} 17. e4 {[%clk 00:09:25]} {[%emt 00:01:18]}
cxd4 {[%clk 00:13:11]} {[%emt 00:00:19]} 18. Nxd4 {[%clk 00:09:02]} {[%emt
00:00:27]} Ne5 {[%clk 00:12:12]} {[%emt 00:01:05]} 19. h3 {[%clk 00:07:53]}
{[%emt 00:01:14]} Bc5 {[%clk 00:11:22]} {[%emt 00:00:56]} 20. Nf3 {[%clk
00:07:51]} {[%emt 00:00:06]} Nxf3+ {[%clk 00:11:09]} {[%emt 00:00:18]} 21. Qxf3
{[%clk 00:07:51]} {[%emt 00:00:04]} Bd4 {[%clk 00:10:56]} {[%emt 00:00:18]} 22.
Qe2 {[%clk 00:06:27]} {[%emt 00:01:30]} e5 {[%clk 00:09:44]} {[%emt 00:01:18]}
23. Nd5 {[%clk 00:05:06]} {[%emt 00:01:25]} 1/2-1/2

[Event "MČR juniorů a juniorek v rapid šachu 2023"]
[Site "Czech Republic"]
[Date "2023.09.24"]
[Round "9.2"]
[White "Prazak, Daniel"]
[Black "Hurtik, Matej"]
[Result "1-0"]
[TimeControl "20 min + 5 sec per move"]
[WhiteFideId "23709456"]
[BlackFideId "397997"]
[WhiteElo "2029"]
[BlackElo "1930"]

1. d4 {[%clk 00:20:07]} {[%emt 00:00:02]} c5 {[%clk 00:19:44]} {[%emt
00:00:27]} 2. c3 {[%clk 00:19:46]} {[%emt 00:00:27]} Nf6 {[%clk 00:19:26]}
{[%emt 00:00:21]} 3. Nf3 {[%clk 00:19:45]} {[%emt 00:00:07]} g6 {[%clk
00:19:17]} {[%emt 00:00:15]} 4. h3 {[%clk 00:19:22]} {[%emt 00:00:28]} cxd4
{[%clk 00:19:04]} {[%emt 00:00:18]} 5. cxd4 {[%clk 00:19:26]} {[%emt 00:00:01]}
Bg7 {[%emt 00:00:14]} 6. Nc3 {[%emt 00:00:06]} O-O {[%emt 00:00:05]} 7. Bf4
{[%emt 00:00:30]} d6 {[%emt 00:00:03]} 8. e3 {[%emt 00:00:33]} Qb6 {[%emt
00:00:19]} 9. Qd2 {[%emt 00:00:38]} Bf5 {[%emt 00:00:26]} 10. Be2 {[%clk
00:18:47]} Nc6 {[%emt 00:00:19]} 11. O-O {[%clk 00:17:30]} {[%emt 00:00:09]}
Rfd8 {[%clk 00:14:07]} 12. d5 {[%clk 00:17:30]} Nb4 {[%clk 00:14:07]} {[%emt
00:04:46]} 13. a3 {[%emt 00:09:20]} Na6 14. g4 {[%clk 00:08:20]} Ne4 {[%clk
00:13:33]} {[%emt 00:00:42]} 15. Nxe4 {[%clk 00:08:16]} {[%emt 00:00:08]} Bxe4
{[%clk 00:13:36]} {[%emt 00:00:03]} 16. Ng5 {[%clk 00:07:57]} {[%emt 00:00:24]}
Nc5 {[%clk 00:12:42]} {[%emt 00:01:00]} 17. Nxe4 {[%clk 00:07:20]} {[%emt
00:00:41]} Nxe4 {[%clk 00:12:44]} {[%emt 00:00:03]} 18. Qc2 {[%clk 00:07:19]}
{[%emt 00:00:06]} Nc5 {[%clk 00:11:31]} {[%emt 00:01:18]} 19. Rab1 {[%clk
00:06:48]} {[%emt 00:00:36]} Rdc8 {[%clk 00:10:41]} {[%emt 00:00:55]} 20. b4
{[%emt 00:03:01]} Ne6 {[%clk 00:09:27]} 21. Qe4 {[%clk 00:04:20]} {[%emt
00:00:55]} Nxf4 {[%clk 00:09:30]} {[%emt 00:00:03]} 22. Qxf4 {[%clk 00:04:22]}
Rc2 {[%clk 00:09:15]} {[%emt 00:00:23]} 23. Bc4 {[%clk 00:02:43]} Rc8 {[%clk
00:09:15]} 24. Bb3 {[%clk 00:02:43]} Rb2 {[%clk 00:09:15]} 25. Qe4 {[%clk
00:02:43]} a5 {[%clk 00:09:15]} 26. Rxb2 {[%clk 00:02:43]} Bxb2 {[%clk
00:09:15]} 27. Rb1 {[%clk 00:02:43]} Bxa3 {[%clk 00:09:15]} 28. bxa5 {[%clk
00:02:43]} Qc7 {[%clk 00:09:15]} 29. Qa4 {[%clk 00:02:43]} Bc5 {[%clk
00:09:15]} 30. Qb5 {[%clk 00:02:43]} Rb8 {[%clk 00:09:15]} 31. Bc4 {[%clk
00:02:43]} Ba7 {[%clk 00:09:15]} 32. Bf1 {[%clk 00:02:43]} Qc3 {[%clk
00:09:15]} 33. Qd7 {[%clk 00:02:43]} Bxe3 {[%clk 00:09:15]} 34. Rxb7 {[%clk
00:02:43]} Rxb7 {[%clk 00:09:15]} 35. Qxb7 {[%clk 00:02:43]} Bc5 {[%clk
00:09:15]} 36. Qxe7 {[%clk 00:02:43]} Qf3 {[%clk 00:00:07]} {[%emt 00:15:39]}
37. Qe2 {[%emt 00:00:04]} Qxd5 {[%clk 00:00:10]} 38. a6 {[%clk 00:00:17]}
{[%emt 00:00:01]} Qd4 {[%clk 00:00:08]} {[%emt 00:00:07]} 39. Kg2 {[%clk
00:00:11]} {[%emt 00:00:12]} Kg7 {[%clk 00:00:08]} {[%emt 00:00:05]} 40. Qf3
{[%clk 00:00:14]} {[%emt 00:00:02]} d5 {[%clk 00:00:07]} {[%emt 00:00:06]} 41.
Be2 {[%clk 00:00:11]} {[%emt 00:00:07]} Qe5 {[%clk 00:00:08]} {[%emt 00:00:04]}
42. Qd3 {[%clk 00:00:08]} {[%emt 00:00:08]} h5 {[%clk 00:00:08]} {[%emt
00:00:07]} 43. Qg3 {[%clk 00:00:16]} {[%emt 00:00:14]} Qf6 {[%clk 00:00:12]} 44.
gxh5 Qf5 45. hxg6 {[%clk 00:00:16]} fxg6 {[%clk 00:00:12]} 46. Bd3 {[%clk
00:00:16]} Qf7 {[%clk 00:00:13]} {[%emt 00:00:08]} 47. Kf1 {[%clk 00:00:14]}
{[%emt 00:00:10]} Qe7 {[%clk 00:00:06]} {[%emt 00:00:13]} 48. Qxg6+ {[%clk
00:00:16]} {[%emt 00:00:03]} Kf8 {[%clk 00:00:10]} 49. Qf5+ {[%clk 00:00:18]}
{[%emt 00:00:03]} Ke8 {[%clk 00:00:11]} {[%emt 00:00:03]} 50. Qxd5 {[%clk
00:00:22]} {[%emt 00:00:02]} Ba7 {[%clk 00:00:06]} {[%emt 00:00:11]} 51. Bc4
{[%clk 00:00:19]} {[%emt 00:00:08]} Qh4 {[%clk 00:00:00]} {[%emt 00:00:06]} 52.
Qa8+ {[%clk 00:00:19]} 1-0